bitfinex/quotes_ETHUSD_20250328
["timestamp","ask_amount","ask_price","bid_price","bid_amount"]
[1743120304580,0.86245185,2002.9,2002.8,14.5]
[1743120305285,0.09375185,2002.9,2002.8,14.5]
[1743120305462,0.09375185,2002.9,2002.8,14.96756463]
[1743120305664,4.99261,2003.0,2002.8,14.96756463]
[1743120305846,6.069979,2003.0,2002.8,14.96756463]
[1743120306054,0.09375185,2002.9,2002.8,14.96756463]
[1743120306886,0.09375185,2002.9,2002.8,14.5]
[1743120307385,5.85061185,2002.9,2002.7,0.4937]
[1743120307561,0.85785185,2002.9,2002.7,0.4937]
[1743120307762,0.69278209,2002.8,2002.7,0.4937]
[1743120307992,0.09336612,2002.8,2002.7,0.4937]
[1743120308278,5.75689,2002.9,2002.7,0.4937]
[1743120308582,0.09336612,2002.8,2002.7,0.4937]
[1743120308760,10.74985,2002.9,2002.7,0.4937]
[1743120308964,0.09336612,2002.8,2002.7,0.4937]
[1743120309166,5.75689,2002.9,2002.7,0.4937]
[1743120309466,8.08636612,2002.8,2002.7,0.4937]
[1743120309671,8.89346612,2002.8,2002.7,0.4937]
[1743120310265,8.8001,2002.8,2002.7,0.4937]
[1743120318404,14.8101,2002.8,2002.7,0.4937]
[1743120320781,15.3601,2002.8,2002.7,0.4937]
[1743120320980,15.95054158,2002.8,2002.7,0.4937]
[1743120321380,15.40054158,2002.8,2002.7,0.4937]
[1743120322004,15.95054158,2002.8,2002.7,0.4937]
[1743120325475,8.8202,2002.2,2002.1,0.05]
[1743120325791,20.29265755,2002.2,2002.1,0.05]
[1743120329488,19.46695755,2002.2,2002.1,0.05]
[1743120331025,20.28455755,2002.2,2002.1,0.05]
[1743120331388,20.72277517,2002.2,2002.1,0.05]
[1743120331796,4.9955,2001.8,2001.7,1.32974807]
[1743120332016,4.99575,2001.7,2001.6,8.07e-06]
[1743120332218,9.24947585,2001.7,2001.6,8.07e-06]
[1743120334836,9.35145,2001.5,2001.4,4.17e-06]
[1743120335037,4.997,2001.2,2000.4,0.005]
[1743120335192,9.99724,2000.6,2000.4,0.005]
[1743120335394,5.43068005,2000.5,2000.1,4.9996]
[1743120335592,0.43185005,2000.5,2000.0,9.61]
[1743120335831,3.0,2000.7,2000.4,4.999]
[1743120336036,0.43189147,2000.6,2000.4,9.99789]
[1743120336241,0.43189147,2000.6,2000.0,4.60963]
[1743120336541,4.99852,2000.6,2000.2,4.99947]
[1743120336700,5.43007402,2000.5,2000.2,4.99947]
[1743120336895,0.43128402,2000.5,2000.3,14.5]
[1743120337095,0.43128402,2000.5,2000.1,9.99922]
[1743120337096,5.43011402,2000.5,2000.1,4.9996]
[1743120337328,0.43128402,2000.5,2000.2,4.9994]
[1743120337909,0.43128402,2000.5,2000.2,4.99946]
[1743120338393,5.43018402,2000.5,2000.1,4.99973]
[1743120338596,5.43018402,2000.5,2000.1,4.99963]
[1743120338826,0.43128402,2000.5,2000.2,4.99942]
[1743120339427,0.43128402,2000.5,2000.3,9.99832]
[1743120339642,0.43128402,2000.5,2000.3,4.99909]
[1743120339804,0.43128402,2000.5,2000.2,11.5557578]
[1743120340191,0.43128402,2000.5,2000.3,4.99924]
[1743120340819,0.43128402,2000.5,2000.2,4.99933]
[1743120341014,4.99925,2000.3,2000.0,4.60963]
[1743120341213,0.43062677,2000.2,2000.0,4.60963]
[1743120341432,0.43062677,2000.2,2000.0,9.6096]
[1743120341627,4.724,2000.4,2000.0,9.60952]
[1743120341830,0.42665491,2000.3,2000.2,4.9995]
[1743120342130,3.0,2000.7,2000.3,4.99904]
[1743120342303,3.0,2000.7,2000.4,4.99887]
[1743120342505,3.0,2000.7,2000.5,4.99863]
[1743120343119,3.0,2000.7,2000.3,4.99924]
[1743120343329,7.99836,2000.7,2000.3,4.99916]
[1743120343526,3.757,2000.6,2000.3,4.99909]
[1743120343727,3.757,2000.6,2000.2,4.99938]
[1743120344026,4.38989913,2000.6,2000.2,9.99873]
[1743120344204,4.38989913,2000.6,2000.2,4.99934]
[1743120344402,3.0,2000.6,2000.2,9.99868]
[1743120344614,5.79495,2000.5,2000.1,4.99965]
[1743120344933,0.7962,2000.5,2000.2,4.99947]
[1743120345142,5.79499,2000.5,2000.1,9.99922]
[1743120345429,5.79499,2000.5,2000.1,4.9996]
[1743120345625,6.078377,2000.4,2000.0,4.60963]
[1743120345829,3.7962,2000.5,2000.2,4.99945]
[1743120346128,7.99877,2000.5,2000.0,9.60954]
[1743120346336,5.7704,2000.4,2000.0,9.60954]
[1743120346532,0.7714,2000.4,2000.0,4.60963]
[1743120346699,7.99877,2000.5,2000.0,4.60963]
[1743120346700,3.0,2000.5,2000.1,4.99966]
[1743120346899,7.99884,2000.5,2000.1,4.99966]
[1743120347104,12.9978,2000.5,2000.0,14.60946]
[1743120347303,12.9978,2000.5,2000.0,9.60949]
[1743120347626,4.99901,2000.4,2000.0,9.60949]
[1743120348138,4.99901,2000.4,2000.0,14.60936]
[1743120348632,4.99901,2000.4,2000.0,14.60933]
[1743120349039,0.8322,2000.3,2000.0,9.60947]
[1743120349242,8.83101,2000.5,2000.1,4.99963]
[1743120349536,8.83101,2000.5,2000.1,9.99923]
[1743120349835,0.42677245,2000.4,2000.1,4.9996]
[1743120350410,5.42580245,2000.4,2000.0,14.60939]
[1743120351206,5.42580245,2000.4,2000.0,9.60947]
[1743120351405,5.42580245,2000.4,2000.0,14.60933]
[1743120352034,0.42677245,2000.4,2000.0,4.60963]
[1743120352239,0.42677245,2000.4,2000.1,4.99962]
[1743120354038,0.8103,2000.3,2000.0,14.60946]
[1743120354209,0.42629139,2000.2,2000.0,9.60947]
[1743120354404,4.99975,2000.1,2000.0,4.60963]
[1743120354609,5.42599996,2000.1,2000.0,4.60963]
[1743120354954,3.42624996,2000.1,2000.0,4.60963]
[1743120355435,8.42599996,2000.1,2000.0,4.60963]
[1743120355812,9.18019996,2000.1,2000.0,4.60963]
[1743120356047,10.66054607,2000.1,2000.0,4.60963]
[1743120356960,3.42624996,2000.1,2000.0,4.60963]
[1743120357434,0.42624996,2000.1,2000.0,9.60963]
[1743120357631,3.0,2000.3,2000.0,9.60963]
[1743120357854,0.42522923,2000.2,2000.0,9.60952]
[1743120358059,0.42522923,2000.2,2000.0,4.60963]
[1743120358722,0.42522923,2000.2,2000.0,9.60958]
[1743120358922,0.42522923,2000.2,2000.0,4.60963]
[1743120359873,0.42522923,2000.2,2000.0,9.60957]
[1743120360565,0.42522923,2000.2,2000.0,4.60963]
[1743120360920,0.767,2000.5,2000.1,4.99972]
[1743120361123,3.767,2000.5,2000.1,4.99972]
[1743120361343,3.767,2000.5,2000.1,4.99961]
[1743120361539,8.76582,2000.5,2000.1,4.99961]
[1743120361823,3.767,2000.5,2000.1,4.99959]
[1743120362024,3.767,2000.5,2000.1,9.99926]
[1743120362025,3.0,2000.5,2000.1,9.99926]
[1743120362223,3.0,2000.5,2000.2,4.99934]
[1743120362436,3.0,2000.5,2000.3,4.99924]
[1743120362861,5.5366,2000.7,2000.3,4.99908]
[1743120363082,0.8278,2000.9,2000.5,4.99854]
[1743120363560,3.0,2000.7,2000.4,4.99899]
[1743120363764,3.0,2000.8,2000.4,9.9979]
[1743120364067,3.0,2000.8,2000.5,4.99872]
[1743120364273,3.0,2000.8,2000.5,9.99734]
[1743120364744,0.38744206,2000.7,2000.5,4.99871]
[1743120365134,0.38744206,2000.7,2000.6,4.9985]
[1743120365463,0.38744206,2000.7,2000.5,4.9986]
[1743120365629,3.8278,2000.9,2000.5,4.9986]
[1743120365630,3.0,2001.0,2000.6,4.9985]
[1743120365836,0.38760096,2000.9,2000.5,4.9986]
[1743120366252,5.38552096,2000.9,2000.4,4.99899]
[1743120366443,4.99834,2000.7,2000.2,9.99883]
[1743120366678,0.38747677,2000.6,2000.3,4.99916]
[1743120366966,10.791,2000.8,2000.3,9.99824]
[1743120367133,0.38743536,2000.5,2000.3,9.99818]
[1743120367338,1.0791,2000.7,2000.3,4.99908]
[1743120367655,1.0791,2000.7,2000.3,9.99818]
[1743120367856,0.38747677,2000.6,2000.3,9.99818]
[1743120368233,0.38747677,2000.6,2000.4,0.37430772]
[1743120368440,4.99975,2000.1,2000.0,4.60963]
[1743120368743,13.9685294,2000.1,2000.0,0.78327696]
[1743120368945,5.00057,1999.8,1999.5,0.1181761]
[1743120369336,0.38821367,1999.7,1999.5,0.1181761]
[1743120369536,0.38821367,1999.7,1999.5,5.1193861]
[1743120369772,0.38821367,1999.7,1999.6,5.001]
[1743120369958,0.38821367,1999.7,1999.5,5.1193861]
[1743120370156,3.0,1999.8,1999.5,5.1193861]
[1743120370375,0.38619247,1999.6,1999.5,5.1193861]
[1743120370567,3.0,1999.8,1999.5,5.1193861]
[1743120370772,0.38619247,1999.6,1999.5,5.1193861]
[1743120371074,0.38619247,1999.6,1999.5,0.1181761]
[1743120371253,3.0,1999.8,1999.5,5.1194261]
[1743120371462,0.38623391,1999.7,1999.5,10.1206761]
[1743120371764,0.38623391,1999.7,1999.5,5.1194261]
[1743120372275,0.38623391,1999.7,1999.5,5.1193361]
[1743120372457,0.38623391,1999.7,1999.5,0.1181761]
[1743120373173,0.38623391,1999.7,1999.5,5.1193661]
[1743120373675,0.38623391,1999.7,1999.5,10.1204861]
[1743120373841,0.38623391,1999.7,1999.5,5.1192961]
[1743120374187,0.38623391,1999.7,1999.6,5.001]
[1743120374536,3.8024,2000.1,1999.7,10.00125]
[1743120374748,3.0,2000.1,1999.8,5.00035]
[1743120374952,4.773,2000.2,1999.6,5.05099347]
[1743120375176,5.82036,2000.3,1999.9,5.0001]
[1743120375378,3.0,2000.2,1999.9,5.0001]
[1743120375691,3.0,2000.2,2000.0,14.5]
[1743120375975,7.9995,2000.2,2000.0,14.5]
[1743120376173,7.9995,2000.2,1999.8,10.00082]
[1743120376174,3.0,2000.2,1999.9,5.00024]
[1743120376670,3.0,2000.2,1999.8,5.0004]
[1743120376974,3.0,2000.2,1999.9,14.5]
[1743120377368,3.0,2000.2,1999.8,10.00079]
[1743120377884,3.0,2000.2,1999.9,10.00032]
[1743120378090,3.0,2000.2,1999.9,5.00014]
[1743120378288,3.0,2000.2,2000.0,14.5]
[1743120378659,3.0,2000.2,1999.9,10.00025]
[1743120378860,3.8211,2000.3,1999.9,10.00026]
[1743120379058,3.8211,2000.3,1999.9,24.50026]
[1743120379262,3.8002,2000.4,2000.0,4.9998]
[1743120379503,3.8002,2000.4,2000.0,9.99972]
[1743120379707,0.38552674,2000.3,2000.1,4.99972]
[1743120379990,8.79936,2000.4,2000.0,4.99997]
[1743120380199,0.38552674,2000.3,2000.0,4.99997]
[1743120380491,8.79936,2000.4,2000.0,4.99997]
[1743120380698,0.38552674,2000.3,2000.0,4.99997]
[1743120380906,8.79936,2000.4,2000.0,4.99997]
[1743120381518,0.38551722,2000.3,2000.0,4.99997]
[1743120381858,8.79936,2000.4,2000.0,4.99997]
[1743120382063,0.3854758,2000.2,2000.1,4.99974]
[1743120382307,3.8002,2000.4,2000.1,4.99974]
[1743120382491,0.38548532,2000.2,2000.1,4.99974]
[1743120382695,3.8002,2000.4,2000.1,4.99974]
[1743120382923,0.38552674,2000.3,2000.1,4.99974]
[1743120383127,0.38552674,2000.3,2000.0,4.99997]
[1743120383335,5.70886377,2000.4,2000.1,14.5]
[1743120383643,5.70886377,2000.4,2000.0,4.99997]
[1743120383849,0.38552674,2000.3,2000.0,4.99997]
[1743120384065,5.70886377,2000.4,2000.0,19.49997]
[1743120384223,0.38548532,2000.2,2000.0,19.49997]
[1743120384399,3.8002,2000.4,2000.0,19.49991]
[1743120384599,0.38552674,2000.3,2000.0,24.49971]
[1743120384808,3.8002,2000.4,2000.0,24.49971]
[1743120384995,0.38552674,2000.3,2000.0,24.49971]
[1743120385196,3.8002,2000.4,2000.1,4.99973]
[1743120385434,0.38551722,2000.3,2000.1,4.99973]
[1743120385595,0.7623,2000.7,2000.1,7.49961906]
[1743120385925,0.35564939,2000.6,2000.5,4.99873]
[1743120386339,3.0,2000.9,2000.5,9.99746]
[1743120386537,0.35563036,2000.6,2000.5,4.99873]
[1743120386837,0.35563036,2000.6,2000.5,9.99723]
[1743120386838,0.35562085,2000.6,2000.5,9.99723]
[1743120387043,3.0,2000.9,2000.5,4.99861]
[1743120387225,0.35562085,2000.6,2000.5,4.99861]
[1743120387537,3.0,2000.9,2000.5,9.99723]
[1743120387752,0.35562085,2000.6,2000.5,4.99861]
[1743120387894,9.37351,2000.9,2000.5,4.99861]
[1743120388101,0.35562085,2000.6,2000.5,4.99861]
[1743120388331,4.37573,2000.9,2000.5,4.99861]
[1743120388534,0.35562085,2000.6,2000.5,4.99861]
[1743120388850,3.7623,2001.0,2000.6,4.9984]
[1743120389071,1.851502,2000.9,2000.6,4.9984]
[1743120390840,3.7623,2001.0,2000.6,4.9984]
[1743120391435,3.7623,2001.0,2000.6,9.9968]
[1743120391852,3.7623,2001.0,2000.6,4.9984]
[1743120392196,5.76986,2001.3,2000.5,14.5]
[1743120392509,1.349986,2001.3,2001.0,4.99743]
[1743120392746,10.57278,2001.5,2001.0,4.99743]
[1743120393045,7.99651,2001.4,2000.9,9.99534]
[1743120393245,7.99651,2001.4,2000.9,9.99521]
[1743120393444,1.95720833,2001.4,2001.0,9.99482]
[1743120393642,4.95720833,2001.4,2001.0,9.99477]
[1743120393801,4.95720833,2001.4,2001.0,9.99474]
[1743120394000,4.95720833,2001.4,2001.0,4.99737]
[1743120394316,4.95720833,2001.4,2001.0,9.99475]
[1743120394852,0.35837292,2001.3,2001.0,4.99737]
[1743120395151,0.35837292,2001.3,2001.0,9.99473]
[1743120395443,0.35852184,2001.2,2001.0,9.99472]
[1743120395648,3.0,2001.4,2001.0,4.99736]
[1743120395813,0.35848046,2001.1,2001.0,4.99736]
[1743120396016,3.0,2001.4,2001.0,9.99473]
[1743120396232,0.35856322,2001.3,2001.0,9.99473]
[1743120396546,3.0,2001.4,2001.0,4.99736]
[1743120396765,0.35852184,2001.2,2001.0,4.99736]
[1743120396926,3.0,2001.4,2001.0,4.99736]
[1743120397125,0.35848046,2001.1,2001.0,4.99736]
[1743120397436,0.35848997,2001.1,2001.0,4.99736]
[1743120397753,3.0,2001.4,2001.0,9.99476]
[1743120397953,3.0,2001.4,2001.1,4.9971]
[1743120398158,0.35857273,2001.3,2001.1,4.9971]
[1743120398359,0.35857273,2001.3,2001.2,4.997]
[1743120398653,0.7607,2001.7,2001.3,4.9966]
[1743120398852,3.7607,2001.7,2001.3,9.99319]
[1743120399759,3.7607,2001.7,2001.3,4.99659]
[1743120400368,3.7607,2001.7,2001.3,9.9932]
[1743120400867,3.7607,2001.7,2001.3,4.99659]
[1743120401563,8.7565,2001.7,2001.2,4.99695]
[1743120401760,4.99637,2001.5,2000.9,4.99765]
[1743120402056,0.764,2001.4,2001.0,9.99464]
[1743120402237,0.764,2001.4,2001.1,4.99721]
[1743120402438,0.764,2001.4,2001.1,4.99714]
[1743120402757,0.764,2001.4,2001.1,9.99421]
[1743120403055,3.7756,2001.6,2001.1,4.99709]
[1743120403270,4.652736,2001.6,2001.1,4.99709]
[1743120403450,9.648826,2001.6,2001.1,4.99709]
[1743120403650,8.648826,2001.6,2001.1,4.99709]
[1743120403956,8.648826,2001.6,2001.1,9.99425]
[1743120404259,8.648826,2001.6,2001.1,4.99709]
[1743120404458,8.648826,2001.6,2001.1,9.99419]
[1743120404664,8.648826,2001.6,2001.1,4.99709]
[1743120404852,8.648826,2001.6,2001.1,9.99421]
[1743120405268,3.652736,2001.6,2001.2,4.99699]
[1743120405764,8.648796,2001.6,2001.1,4.99709]
[1743120405941,3.652736,2001.6,2001.2,4.99684]
[1743120406136,2.7756,2001.6,2001.3,4.99666]
[1743120407078,2.0,2001.6,2001.3,4.99663]
[1743120407649,2.0,2001.6,2001.2,4.99695]
[1743120408365,2.0,2001.6,2001.2,9.99381]
[1743120408850,2.0,2001.6,2001.2,4.99686]
[1743120409254,4.49577,2001.7,2001.2,4.99686]
[1743120409429,6.595567,2001.7,2001.2,4.99686]
[1743120409631,0.36096911,2001.6,2001.2,4.99686]
[1743120409833,6.595567,2001.7,2001.2,4.99685]
[1743120410066,0.36092774,2001.5,2001.2,4.99685]
[1743120410242,6.595567,2001.7,2001.2,4.99685]
[1743120410443,0.36088637,2001.4,2001.0,4.99728]
[1743120410643,5.76663,2001.5,2001.0,9.99463]
[1743120410864,0.36095894,2001.3,2001.0,9.99463]
[1743120411037,5.76663,2001.5,2001.0,24.49463]
[1743120411232,0.36092706,2001.2,2001.0,24.49463]
[1743120411557,5.76663,2001.5,2001.0,26.944093]
[1743120411737,0.36088568,2001.1,2001.0,26.944093]
[1743120411937,5.76663,2001.5,2001.0,26.944093]
[1743120412364,0.36100981,2001.4,2001.1,4.99721]
[1743120412662,0.36100981,2001.4,2001.0,26.944103]
[1743120413035,0.36100981,2001.4,2001.1,4.99724]
[1743120413763,0.36100981,2001.4,2001.0,21.946743]
[1743120413945,0.36100981,2001.4,2001.0,7.446743]
[1743120414147,0.36100981,2001.4,2001.0,4.99728]
[1743120414443,0.36100981,2001.4,2001.0,24.49464]
[1743120414635,0.36100981,2001.4,2001.1,4.99724]
[1743120416167,0.36100981,2001.4,2001.0,19.49728]
[1743120416664,0.36100981,2001.4,2001.1,4.99721]
[1743120416962,0.36100981,2001.4,2001.1,4.99704]
[1743120418069,0.36100981,2001.4,2001.1,19.49704]
[1743120418372,0.36100981,2001.4,2001.1,14.5]
[1743120418867,0.36100981,2001.4,2001.1,4.99724]
[1743120419076,0.7619,2001.3,2000.6,6.44846]
[1743120419269,0.7619,2001.0,2000.6,4.99836]
[1743120419479,0.7619,2001.0,2000.6,24.49669]
[1743120419641,0.36152609,2000.9,2000.6,24.49669]
[1743120419841,0.36152609,2000.9,2000.6,19.49833]
[1743120420041,0.36152609,2000.9,2000.6,24.4967]
[1743120420276,0.36152609,2000.9,2000.5,9.99738]
[1743120420464,4.99805,2000.8,2000.4,4.99892]
[1743120420660,5.81957,2000.7,2000.4,14.5]
[1743120420857,4.99852,2000.6,2000.4,14.5]
[1743120421058,10.35759752,2000.6,2000.2,4.99934]
[1743120421269,4.99891,2000.5,2000.1,4.99958]
[1743120421466,4.99907,2000.4,1999.6,5.37925531]
[1743120421664,6.18867526,2000.4,2000.0,4.99983]
[1743120421860,6.18867526,2000.4,2000.0,9.9997]
[1743120422078,4.99944,2000.3,1999.8,5.00042]
[1743120422277,5.35958686,2000.3,1999.9,5.500142]
[1743120423040,0.36014686,2000.3,1999.8,5.00042]
[1743120423272,4.99997,2000.1,1999.7,14.5]
[1743120423456,1.15278026,2000.0,1999.7,19.50063]
[1743120423780,1.15278026,2000.0,1999.7,19.50067]
[1743120423950,1.15278026,2000.0,1999.7,21.950834]
[1743120424150,1.15278026,2000.0,1999.7,26.951424]
[1743120424674,1.15278026,2000.0,1999.7,21.950754]
[1743120424975,1.15278026,2000.0,1999.7,14.5]
[1743120424976,11.15313026,2000.0,1999.7,14.5]
[1743120425182,5.00028,1999.9,1999.7,14.5]
[1743120425570,0.35456255,1999.8,1999.7,14.5]
[1743120425881,5.00028,1999.9,1999.7,14.5]
[1743120426181,0.35456255,1999.8,1999.7,14.5]
[1743120426546,5.79401,2000.0,1999.7,14.5]
[1743120426774,0.35456255,1999.8,1999.7,19.50075]
[1743120427079,0.35456255,1999.8,1999.7,21.950913]
[1743120427292,0.794,2000.0,1999.7,21.950913]
[1743120427494,0.35460401,1999.9,1999.7,19.50075]
[1743120427691,0.35460401,1999.9,1999.7,14.5]
[1743120427994,0.35460401,1999.9,1999.7,19.50073]
[1743120428853,0.35460401,1999.9,1999.7,14.5]
[1743120429068,0.35460401,1999.9,1999.7,19.50051]
[1743120429264,0.35460401,1999.9,1999.8,7.00055495]
[1743120429561,0.8278,2000.5,2000.3,4.99916]
[1743120429792,0.8254,2000.7,2000.4,4.999]
[1743120429956,0.8254,2000.7,2000.4,4.99884]
[1743120430151,3.8254,2000.7,2000.4,4.99884]
[1743120431381,3.0,2000.7,2000.4,4.99884]
[1743120431551,4.741,2000.8,2000.5,4.99857]
[1743120431976,0.7849,2000.9,2000.5,4.99857]
[1743120432187,3.7849,2000.9,2000.6,4.99838]
[1743120432482,0.7849,2001.1,2000.8,4.99799]
[1743120432674,0.7849,2001.1,2000.8,9.99587]
[1743120432881,0.7849,2001.3,2000.9,4.99774]
[1743120433053,7.4945867,2001.6,2001.2,4.997]
[1743120433389,12.4907967,2001.6,2001.2,4.997]
[1743120433850,4.99625,2001.5,2001.2,4.997]
[1743120434211,7.4945867,2001.6,2001.2,4.9968]
[1743120434212,3.79,2001.6,2001.2,4.9968]
[1743120434485,3.79,2001.6,2001.3,4.99668]
[1743120434700,3.79,2001.6,2001.2,5.49659]
[1743120434701,3.0,2001.6,2001.2,5.49659]
[1743120434881,7.99608,2001.6,2001.3,4.99672]
[1743120435071,3.0,2001.6,2001.3,4.99659]
[1743120435265,3.0,2001.6,2001.3,9.99317]
[1743120435592,3.0,2001.6,2001.2,10.49357]
[1743120435888,7.99604,2001.6,2001.3,4.99674]
[1743120436058,3.0,2001.6,2001.3,4.99674]
[1743120436262,0.799,2001.8,2001.4,4.99631]
[1743120436573,3.799,2001.8,2001.5,4.99616]
[1743120436967,8.79451,2001.8,2001.4,4.99631]
[1743120437591,8.79451,2001.8,2001.4,9.99265]
[1743120437759,8.79451,2001.8,2001.4,4.99631]
[1743120438794,8.79451,2001.8,2001.5,4.99624]
[1743120439390,13.79018,2001.8,2001.4,4.99631]
[1743120439592,4.99588,2001.7,2001.3,11.042583]
[1743120439791,0.36300323,2001.7,2001.4,4.99644]
[1743120441198,0.36300323,2001.7,2001.4,9.99285]
[1743120441395,0.36300323,2001.7,2001.4,6.1505963]
[1743120441573,0.36300323,2001.7,2001.4,6.1505763]
[1743120443188,0.36300323,2001.7,2001.6,4.996]
[1743120443687,3.0,2001.9,2001.6,4.996]
[1743120443881,0.36313984,2001.8,2001.6,4.996]
[1743120445095,0.36313984,2001.8,2001.6,6.11063263]
[1743120445294,0.7918,2002.0,2001.7,4.99575]
[1743120445491,0.36316221,2001.9,2001.7,4.99575]
[1743120446068,0.36316221,2001.9,2001.8,4.9955]
[1743120446267,3.0,2002.1,2001.8,4.9955]
[1743120446608,0.36327488,2002.0,2001.9,4.99525]
[1743120446891,2.1968655,2002.3,2002.1,4.99469]
[1743120447093,2.1968655,2002.3,2002.2,4.9945]
[1743120447263,0.05,2002.9,2002.3,4.99406]
[1743120447264,15.51532,2002.8,2002.3,4.99406]
[1743120447462,15.51532,2002.8,2002.3,9.98821]
[1743120447663,10.52213,2002.8,2002.4,4.99391]
[1743120447859,5.78413,2002.8,2002.4,9.98775]
[1743120448100,5.78413,2002.8,2002.4,4.99384]
[1743120448296,5.78413,2002.8,2002.4,9.98768]
[1743120448597,3.0,2002.7,2002.4,9.98768]
[1743120449701,7.99347,2002.7,2002.3,4.99418]
[1743120450495,3.0,2002.7,2001.9,14.5]
[1743120450689,5.75472,2002.6,2002.2,4.99441]
[1743120451009,5.75472,2002.6,2002.2,10.03877]
[1743120451200,5.75472,2002.6,2002.3,4.99418]
[1743120451371,5.75472,2002.6,2002.4,4.99397]
[1743120451372,0.7611,2002.6,2002.4,4.99397]
[1743120451571,0.7611,2002.6,2002.3,4.99418]
[1743120452099,0.7611,2002.6,2002.3,4.99414]
[1743120452401,0.7611,2002.6,2002.4,4.9939]
[1743120452778,3.0,2002.7,2002.4,4.9939]
[1743120452998,7.99331,2002.7,2002.2,4.99448]
[1743120453201,4.99362,2002.6,2002.2,4.99448]
[1743120453497,9.9873,2002.6,2002.2,4.99448]
[1743120454202,4.99362,2002.6,2002.2,9.98876]
[1743120454695,0.36936031,2002.5,2002.3,4.99424]
[1743120454878,12.98679,2002.7,2002.3,4.99424]
[1743120455080,0.36931898,2002.4,2002.3,4.99424]
[1743120455281,9.380319,2002.7,2002.3,4.99424]
[1743120455470,0.36931898,2002.4,2002.3,4.99412]
[1743120455670,12.75535,2002.7,2002.3,9.98826]
[1743120455972,0.36931898,2002.4,2002.2,4.99446]
[1743120456170,12.75535,2002.7,2002.3,4.99411]
[1743120456370,12.75535,2002.7,2002.3,9.98825]
[1743120456600,12.75535,2002.7,2002.3,4.99411]
[1743120456802,17.74876,2002.7,2002.3,4.99411]
[1743120457106,12.75535,2002.7,2002.3,4.99411]
[1743120457470,17.74876,2002.7,2002.3,4.99411]
[1743120457804,12.75535,2002.7,2002.3,4.99411]
[1743120458799,7.99335,2002.7,2002.3,9.98828]
[1743120459499,3.0,2002.7,2002.4,4.99395]
[1743120459898,7.99327,2002.7,2002.3,9.98826]
[1743120460101,7.99327,2002.7,2002.3,19.49411]
[1743120460609,7.99327,2002.7,2002.3,18.94411]
[1743120461109,7.99327,2002.7,2002.3,23.93823]
[1743120461307,3.0,2002.7,2002.4,4.99393]
[1743120461507,3.0,2002.7,2002.3,18.94411]
[1743120461685,7.99334,2002.7,2002.3,18.94411]
[1743120462015,9.855869,2002.7,2002.3,14.5]
[1743120462304,4.99364,2002.6,2002.2,4.99447]
[1743120462606,9.98735,2002.6,2002.2,4.99438]
[1743120462807,4.99433,2002.3,2001.9,19.49509]
[1743120463013,4.99433,2002.3,2001.6,4.99588]
[1743120463014,4.99513,2002.0,2001.6,4.99588]
[1743120463313,4.99527,2001.9,2001.6,4.99588]
[1743120463804,4.99513,2002.0,2001.6,9.99171]
[1743120464195,4.99513,2002.0,2001.6,9.99172]
[1743120464507,0.3696367,2001.9,2001.6,9.99172]
[1743120464916,0.3696367,2001.9,2001.6,4.99583]
[1743120468075,6.1980967,2001.9,2001.6,4.99583]
[1743120469013,1.2028367,2001.9,2001.6,9.99173]
[1743120469201,1.2028367,2001.9,2001.6,4.99583]
[1743120469711,6.1981167,2001.9,2001.6,4.99583]
[1743120470420,11.1935167,2001.9,2001.5,4.99621]
[1743120470582,6.1981167,2001.9,2001.5,9.99232]
[1743120470911,6.1981167,2001.9,2001.6,4.99599]
[1743120472046,1.2028367,2001.9,2001.2,5.14112379]
[1743120472255,1.2028367,2001.9,2001.7,4.99564]
[1743120472406,0.8332,2001.9,2001.7,4.99564]
[1743120472745,0.36959535,2001.8,2001.7,5.0455949]
[1743120472984,0.7767,2002.1,2001.9,4.99521]
[1743120473301,4.747,2002.2,2001.9,4.99521]
[1743120473502,9.74152,2002.2,2001.9,4.99521]
[1743120474251,4.747,2002.2,2001.9,9.99042]
[1743120474400,4.747,2002.2,2001.9,4.99521]
[1743120474601,6.00482565,2002.6,2002.2,4.99442]
[1743120474602,0.764,2002.5,2002.2,4.99442]
[1743120475009,3.764,2002.5,2002.2,4.99442]
[1743120476036,5.75783,2002.5,2002.1,4.99475]
[1743120476455,4.99405,2002.4,2002.0,4.9949]
[1743120476603,4.99405,2002.4,2002.0,9.9898]
[1743120476809,4.99405,2002.4,2002.0,4.9949]
[1743120477237,4.99405,2002.4,2002.0,9.98976]
[1743120477636,4.99405,2002.4,2002.0,4.99486]
[1743120477835,5.75778,2002.5,2002.1,4.99464]
[1743120478050,4.994,2002.4,2002.1,4.99464]
[1743120478253,7.7938659,2002.5,2002.1,4.99464]
[1743120478427,7.7938659,2002.5,2002.1,4.99461]
[1743120478626,7.7938659,2002.5,2002.2,4.9945]
[1743120478857,2.8000859,2002.5,2002.2,4.9945]
[1743120479059,3.0,2002.6,2002.3,4.99415]
[1743120479450,7.99352,2002.6,2002.2,4.9945]
[1743120480554,4.99389,2002.5,2002.1,4.9947]
[1743120480761,4.99389,2002.5,2002.1,4.99467]
[1743120481059,4.99409,2002.4,2002.0,4.99495]
[1743120481959,4.99409,2002.4,2002.0,9.98981]
[1743120483160,4.99409,2002.4,2002.0,4.99486]
[1743120483365,5.79479,2002.4,2001.9,5.494751]
[1743120483567,4.99432,2002.3,2001.9,9.99041]
[1743120484266,4.99432,2002.3,2002.0,4.99499]
[1743120484556,0.3378236,2002.2,2001.9,9.99031]
[1743120484764,0.3378236,2002.2,2002.0,4.99496]
[1743120485060,6.674269,2002.4,2002.0,4.99496]
[1743120485256,0.33778226,2002.1,2002.0,4.99496]